fUSD/lending_fUSD_20250103
["ID","MTS","AMOUNT","RATE_DAILY","PERIOD"]
[347516353,1735897877173,-500.0,9.818e-05,2]
[347516354,1735897877183,-1526.8,9.818e-05,2]
[347516355,1735897877193,-500.0,9.818e-05,2]
[347516356,1735897877203,-751.5,9.818e-05,2]
[347516357,1735897877214,-948.81,9.818e-05,2]
[347516358,1735897877223,-500.0,9.818e-05,2]
[347516359,1735897877233,-2135.92,9.818e-05,2]
[347516360,1735897877245,-994.25,9.818e-05,2]
[347516361,1735897877256,-500.0,9.818e-05,2]
[347516362,1735897877266,-3704.18,9.818e-05,2]
[347516363,1735897877276,-500.0,9.818e-05,2]
[347516364,1735897877286,-825.45,9.818e-05,2]
[347516365,1735897877296,-889.94,9.818e-05,2]
[347516366,1735897877306,-500.0,9.818e-05,2]
[347516367,1735897877315,-1924.06,9.818e-05,2]
[347516368,1735897877326,-733.19,9.818e-05,2]
[347516369,1735897877335,-500.0,9.818e-05,2]
[347516370,1735897877345,-1398.87,9.818e-05,2]
[347516371,1735897877355,-503.4723339,9.818e-05,2]
[347516372,1735897877365,-1059.59,9.818e-05,2]
[347516373,1735897877375,-500.0,9.818e-05,2]
[347516374,1735897877384,-1417.18,9.818e-05,2]
[347516375,1735897877394,-500.0,9.818e-05,2]
[347516376,1735897877404,-326.05677299,9.818e-05,2]
[347516377,1735897877413,-3585.77,9.818e-05,2]
[347516378,1735897877423,-3272.27,9.818e-05,2]
[347516379,1735897877433,-727.59,9.818e-05,2]
[347516380,1735897877688,-500.0,9.818e-05,2]
[347516381,1735897877697,-2066.79,9.818e-05,2]
[347516382,1735897877706,-500.0,9.818e-05,2]
[347516383,1735897877715,-503.08416375,9.818e-05,2]
[347516384,1735897877724,-500.0,9.818e-05,2]
[347516385,1735897877732,-500.0,9.818e-05,2]
[347516386,1735897877742,-1809.59,9.818e-05,2]
[347516387,1735897877750,-500.0,9.818e-05,2]
[347516388,1735897877760,-423.98510593,9.818e-05,2]
[347516389,1735897877769,-502.61382146,9.818e-05,2]
[347516390,1735897877778,-500.0,9.818e-05,2]
[347516391,1735897877788,-500.0,9.818e-05,2]
[347516392,1735897877798,-1799.09,9.818e-05,2]
[347516393,1735897877808,-3207.79,9.818e-05,2]
[347516394,1735897877817,-500.0,9.818e-05,2]
[347516395,1735897877826,-583.31,9.818e-05,2]
[347516396,1735897877836,-500.0,9.818e-05,2]
[347516397,1735897877846,-1854.01,9.818e-05,2]
[347516398,1735897877855,-500.0,9.818e-05,2]
[347516399,1735897877866,-1951.1,9.818e-05,2]
[347516400,1735897877875,-1960.12,9.818e-05,2]
[347516401,1735897877885,-500.0,9.818e-05,2]
[347516402,1735897877895,-2911.89,9.818e-05,2]
[347516403,1735897877905,-968.36,9.818e-05,2]
[347516404,1735897877915,-577.26,9.818e-05,2]
[347516405,1735897877924,-1165.94,9.818e-05,2]
[347516406,1735897877934,-500.0,9.818e-05,2]
[347516407,1735897877943,-1266.94,9.818e-05,2]
[347516408,1735897877953,-995.54,9.818e-05,2]
[347516409,1735897877963,-1666.22,9.818e-05,2]
[347516410,1735897877972,-500.0,9.818e-05,2]
[347516411,1735897877982,-2142.14,9.818e-05,2]
[347516412,1735897877992,-614.86,9.818e-05,2]
[347516413,1735897878001,-500.0,9.818e-05,2]
[347516414,1735897878012,-500.0,9.818e-05,2]
[347516415,1735897878022,-2516.74,9.818e-05,2]
[347516416,1735897878033,-1912.36,9.818e-05,2]
[347516417,1735897878043,-500.0,9.818e-05,2]
[347516418,1735897878053,-503.63133791,9.818e-05,2]
[347516419,1735897878063,-741.84,9.818e-05,2]
[347516420,1735897878073,-1208.98,9.818e-05,2]
[347516421,1735897878083,-690.05,9.818e-05,2]
[347516422,1735897878092,-500.0,9.818e-05,2]
[347516423,1735897878102,-1004.2,9.818e-05,2]
[347516424,1735897878112,-1855.53,9.818e-05,2]
[347516425,1735897878121,-761.54,9.818e-05,2]
[347516426,1735897878131,-1606.57,9.818e-05,2]
[347516427,1735897878140,-501.61,9.818e-05,2]
[347516428,1735897878150,-500.0,9.818e-05,2]
[347516429,1735897878162,-2964.79,9.818e-05,2]
[347516430,1735897878174,-500.0,9.818e-05,2]
[347516431,1735897878184,-500.0,9.818e-05,2]
[347516432,1735897878195,-1803.24,9.818e-05,2]
[347516433,1735897878204,-500.0,9.818e-05,2]
[347516434,1735897878214,-500.0,9.818e-05,2]
[347516435,1735897878223,-158.1921711,9.818e-05,2]
[347516436,1735897878234,-707.58,9.818e-05,2]
[347516437,1735897878243,-1125.71,9.818e-05,2]
[347516438,1735897878253,-619.54,9.818e-05,2]
[347516439,1735897878263,-500.0,9.818e-05,2]
[347516440,1735897878273,-2292.62,9.818e-05,2]
[347516441,1735897878283,-231.23664432,9.818e-05,2]
[347516442,1735897878292,-553.62,9.818e-05,2]
[347516443,1735897878303,-731.01,9.818e-05,2]
[347516444,1735897878314,-1891.06,9.818e-05,2]
[347516445,1735897878324,-1491.69,9.818e-05,2]
[347516446,1735897878334,-1392.52,9.818e-05,2]
[347516447,1735897878344,-656.42,9.818e-05,2]
[347516448,1735897878354,-500.0,9.818e-05,2]
[347516449,1735897878363,-500.0,9.818e-05,2]
[347516450,1735897878373,-540.46,9.818e-05,2]
[347516451,1735897878383,-512.86,9.818e-05,2]
[347516452,1735897878393,-2680.38,9.818e-05,2]
[347516453,1735897878403,-917.15,9.818e-05,2]
[347516454,1735897878413,-2492.71,9.818e-05,2]
[347516455,1735897878423,-1013.52,9.818e-05,2]
[347516456,1735897878433,-500.0,9.818e-05,2]
[347516457,1735897878443,-2766.0,9.818e-05,2]
[347516458,1735897878453,-636.35413965,9.818e-05,2]
[347516459,1735897878462,-500.0,9.818e-05,2]
[347516460,1735897878472,-551.99,9.818e-05,2]
[347516461,1735897878482,-500.0,9.818e-05,2]
[347516462,1735897878491,-251.4038965,9.818e-05,2]
[347516463,1735897878501,-3326.92,9.818e-05,2]
[347516464,1735897878511,-910.8,9.818e-05,2]
[347516465,1735897878522,-584.4,9.818e-05,2]
[347516466,1735897878532,-501.56206652,9.819e-05,2]
[347516467,1735897878542,-473.20199535,9.819e-05,2]
[347516468,1735897878552,-500.0,9.819e-05,2]
[347516469,1735897878561,-399.09399067,9.819e-05,2]
[347516470,1735897878572,-5289.67,9.819e-05,2]
[347516471,1735897878581,-5994.19,9.819e-05,2]
[347516472,1735897878591,-4238.37,9.819e-05,2]
[347516473,1735897878601,-502.43758198,9.819e-05,2]
[347516474,1735897878611,-500.0,9.819e-05,2]
[347516475,1735897878620,-501.46760306,9.819e-05,2]
[347516476,1735897878630,-7830.78,9.819e-05,2]
[347516477,1735897878640,-9688.5,9.819e-05,2]
[347516478,1735897878652,-500.0,9.819e-05,2]
[347516479,1735897878662,-1376.7,9.819e-05,2]
[347516480,1735897878672,-6370.19,9.819e-05,2]
[347516481,1735897878682,-500.0,9.819e-05,2]
[347516482,1735897878692,-12828.72,9.819e-05,2]
[347516483,1735897878702,-803.82,9.819e-05,2]
[347516484,1735897878712,-2135.2,9.819e-05,2]
[347516485,1735897878722,-1053.03,9.819e-05,2]
[347516486,1735897878733,-1069.87,9.819e-05,2]
[347516487,1735897878744,-1900.73,9.819e-05,2]
[347516488,1735897878754,-3505.1,9.819e-05,2]
[347516489,1735897878764,-1380.55,9.819e-05,2]
[347516490,1735897878774,-1144.59,9.819e-05,2]
[347516491,1735897878784,-1841.26,9.819e-05,2]
[347516492,1735897878794,-1867.46,9.819e-05,2]
[347516493,1735897878804,-3841.48,9.819e-05,2]
[347516494,1735897878814,-2511.49,9.819e-05,2]
[347516495,1735897878824,-500.0,9.819e-05,2]
[347516496,1735897878834,-5884.72,9.819e-05,2]
[347516497,1735897878843,-3019.53,9.819e-05,2]
[347516498,1735897878854,-4183.98,9.819e-05,2]
[347516499,1735897878863,-552.26,9.819e-05,2]
[347516500,1735897878873,-1086.75,9.819e-05,2]
[347516501,1735897878884,-1946.39,9.819e-05,2]
[347516502,1735897878895,-500.0,9.819e-05,2]
[347516503,1735897878906,-500.0,9.819e-05,2]
[347516504,1735897878916,-1164.43,9.819e-05,2]
[347516505,1735897878926,-500.0,9.819e-05,2]
[347516506,1735897878935,-500.0,9.819e-05,2]
[347516507,1735897878946,-1914.54,9.819e-05,2]
[347516508,1735897878955,-5258.8,9.819e-05,2]
[347516509,1735897878965,-724.36,9.819e-05,2]
[347516510,1735897878975,-1624.15,9.819e-05,2]
[347516511,1735897878985,-1707.53,9.819e-05,2]
[347516512,1735897878995,-593.13217203,9.819e-05,2]
[347516513,1735897879007,-2942.33,9.819e-05,2]
[347516514,1735897879017,-2057.75,9.819e-05,2]
[347516515,1735897879027,-5583.05,9.819e-05,2]
[347516516,1735897879038,-1747.71,9.819e-05,2]
[347516517,1735897879048,-1703.88,9.819e-05,2]
[347516518,1735897879059,-500.0,9.819e-05,2]
[347516519,1735897879069,-2318.18,9.819e-05,2]
[347516520,1735897879079,-6516.24,9.819e-05,2]
[347516521,1735897879089,-1896.91,9.819e-05,2]
[347516522,1735897879100,-4176.54,9.819e-05,2]
[347516523,1735897879110,-576.95,9.819e-05,2]
[347516524,1735897879120,-2763.46,9.819e-05,2]
[347516525,1735897879129,-1299.93,9.819e-05,2]
[347516526,1735897879139,-8027.13,9.819e-05,2]
[347516527,1735897879149,-2956.54,9.819e-05,2]
[347516528,1735897879159,-1814.31,9.819e-05,2]
[347516529,1735897879172,-500.0,9.819e-05,2]
[347516530,1735897879182,-2268.5,9.819e-05,2]
[347516531,1735897879191,-2517.51,9.819e-05,2]
[347516532,1735897879201,-3138.74,9.819e-05,2]
[347516533,1735897879211,-1924.0,9.819e-05,2]
[347516534,1735897879221,-1479.04,9.819e-05,2]
[347516535,1735897879231,-2349.43,9.819e-05,2]
[347516536,1735897879242,-1845.0,9.819e-05,2]
[347516537,1735897879252,-1342.02,9.819e-05,2]
[347516538,1735897879264,-1466.27,9.819e-05,2]
[347516539,1735897879274,-3020.93,9.819e-05,2]
[347516540,1735897879283,-3134.09,9.819e-05,2]
[347516541,1735897879294,-3176.49,9.819e-05,2]
[347516542,1735897879304,-1882.48,9.819e-05,2]
[347516543,1735897879313,-3061.0,9.819e-05,2]
[347516544,1735897879323,-2621.89,9.819e-05,2]
[347516545,1735897879334,-10196.53,9.819e-05,2]
[347516546,1735897879344,-1405.22,9.819e-05,2]
[347516547,1735897879354,-2338.48,9.819e-05,2]
[347516548,1735897879363,-1340.74,9.819e-05,2]
[347516549,1735897879373,-1872.22,9.819e-05,2]
[347516550,1735897879383,-2097.87,9.819e-05,2]
[347516551,1735897879392,-500.0,9.819e-05,2]
[347516552,1735897879402,-1532.61,9.819e-05,2]
[347516553,1735897879412,-869.67,9.819e-05,2]
[347516554,1735897879422,-500.0,9.819e-05,2]
[347516555,1735897879431,-1725.81,9.819e-05,2]
[347516556,1735897879441,-2295.81,9.819e-05,2]
[347516557,1735897879450,-637.38,9.819e-05,2]
[347516558,1735897879460,-500.0,9.82e-05,2]
[347516559,1735897879469,-588.20996578,9.82e-05,2]
[347516560,1735897879479,-500.0,9.82e-05,2]
[347516561,1735897879488,-539.0,9.82e-05,2]
[347516562,1735897879497,-500.0,9.82e-05,2]
[347516563,1735897879507,-1190.1,9.82e-05,2]
[347516564,1735897879517,-1175.31,9.82e-05,2]
[347516565,1735897879527,-500.0,9.82e-05,2]
[347516566,1735897879536,-266.49684786,9.82e-05,2]
[347516567,1735897879546,-500.0,9.82e-05,2]
[347516568,1735897879555,-1791.27,9.82e-05,2]
[347516569,1735897879565,-500.0,9.82e-05,2]
[347516570,1735897879575,-500.0,9.82e-05,2]
[347516571,1735897879585,-500.0,9.82e-05,2]
[347516572,1735897879596,-1241.72,9.82e-05,2]
[347516573,1735897879605,-500.0,9.82e-05,2]
[347516574,1735897879615,-500.0,9.82e-05,2]
[347516575,1735897879625,-500.0,9.82e-05,2]
[347516576,1735897879634,-500.95048896,9.82e-05,2]
[347516577,1735897879644,-753.46,9.82e-05,2]
[347516578,1735897879654,-500.0,9.82e-05,2]
[347516579,1735897879663,-500.0,9.82e-05,2]
[347516580,1735897879673,-500.0,9.82e-05,2]
[347516581,1735897879683,-500.0,9.82e-05,2]
[347516582,1735897879692,-1696.05,9.82e-05,2]
[347516583,1735897879702,-500.0,9.82e-05,2]
[347516584,1735897879711,-500.0,9.82e-05,2]
[347516585,1735897879721,-888.69,9.82e-05,2]
[347516586,1735897879730,-1221.53,9.82e-05,2]
[347516587,1735897879740,-1205.31,9.82e-05,2]
[347516588,1735897879749,-1924.82,9.82e-05,2]
[347516589,1735897879761,-683.94,9.82e-05,2]
[347516590,1735897879771,-684.65,9.82e-05,2]
[347516591,1735897879781,-1217.93,9.82e-05,2]
[347516592,1735897879791,-1825.57,9.82e-05,2]
[347516593,1735897879800,-1097.87,9.82e-05,2]
[347516594,1735897879811,-500.0,9.82e-05,2]
[347516595,1735897879820,-727.72,9.82e-05,2]
[347516596,1735897879830,-556.29,9.82e-05,2]
[347516597,1735897879841,-597.18,9.82e-05,2]
[347516598,1735897879851,-570.65,9.82e-05,2]
[347516599,1735897879861,-795.58,9.82e-05,2]
[347516600,1735897879871,-2623.63,9.82e-05,2]
[347516601,1735897879881,-527.33,9.82e-05,2]
[347516602,1735897879892,-780.31,9.82e-05,2]
[347516603,1735897879901,-957.3,9.82e-05,2]
[347516604,1735897879911,-500.0,9.82e-05,2]
[347516605,1735897879921,-1034.1,9.82e-05,2]
[347516606,1735897879930,-533.3109272,9.82e-05,2]
[347516607,1735897879940,-500.0,9.82e-05,2]
[347516608,1735897879949,-2002.66,9.82e-05,2]
[347516609,1735897879958,-683.33,9.82e-05,2]
[347516610,1735897879968,-501.28097126,9.82e-05,2]
[347516611,1735897879977,-500.0,9.82e-05,2]
[347516612,1735897879987,-524.33,9.82e-05,2]
[347516613,1735897879996,-501.29182002,9.82e-05,2]
[347516614,1735897880006,-916.29,9.82e-05,2]
[347516615,1735897880016,-500.0,9.82e-05,2]
[347516616,1735897880110,-200.75965339,9.82e-05,2]
[347516617,1735897880120,-1157.28,9.82e-05,2]
[347516618,1735897880129,-500.0,9.82e-05,2]
[347516619,1735897880138,-1778.86,9.82e-05,2]
[347516620,1735897880148,-1778.86,9.82e-05,2]
[347516621,1735897880157,-500.0,9.82e-05,2]
[347516622,1735897880166,-500.0,9.82e-05,2]
[347516623,1735897880179,-500.0,9.82e-05,2]
[347516624,1735897880188,-651.92,9.82e-05,2]
[347516625,1735897880198,-1202.27,9.82e-05,2]
[347516626,1735897880207,-1443.69,9.82e-05,2]
[347516627,1735897880217,-1298.7,9.82e-05,2]
[347516628,1735897880226,-500.0,9.82e-05,2]
[347516629,1735897880235,-500.0,9.82e-05,2]
[347516630,1735897880245,-513.45,9.82e-05,2]
[347516631,1735897880254,-500.0,9.82e-05,2]
[347516632,1735897880265,-500.0,9.82e-05,2]
[347516633,1735897880274,-503.71145374,9.82e-05,2]
[347516634,1735897880283,-500.0,9.82e-05,2]
[347516635,1735897880292,-500.0,9.82e-05,2]
[347516636,1735897880301,-975.65,9.82e-05,2]
[347516637,1735897880310,-500.0,9.82e-05,2]
[347516638,1735897880319,-1235.66,9.82e-05,2]
[347516639,1735897880328,-1260.46,9.82e-05,2]
[347516640,1735897880337,-502.09847719,9.82e-05,2]
[347516641,1735897880347,-1103.6,9.82e-05,2]
[347516642,1735897880356,-503.09691955,9.82e-05,2]
[347516643,1735897880365,-500.0,9.82e-05,2]
[347516644,1735897880375,-629.75507898,9.82e-05,2]
[347516645,1735897880385,-547.68,9.82e-05,2]
[347516646,1735897880394,-500.0,9.82e-05,2]
[347516647,1735897880403,-500.0,9.82e-05,2]
[347516648,1735897880412,-958.78,9.82e-05,2]
[347516649,1735897880421,-1059.11,9.82e-05,2]
[347516650,1735897880431,-500.0,9.82e-05,2]
[347516651,1735897880440,-734.65,9.82e-05,2]
[347516652,1735897880449,-500.0,9.82e-05,2]
[347516653,1735897880458,-500.0,9.82e-05,2]
[347516654,1735897880468,-500.0,9.82e-05,2]
[347516655,1735897880477,-736.3,9.82e-05,2]
[347516656,1735897880486,-500.0,9.82e-05,2]
[347516657,1735897880495,-500.0,9.82e-05,2]
[347516658,1735897880504,-500.0,9.82e-05,2]
[347516659,1735897880513,-794.45,9.82e-05,2]
[347516660,1735897880522,-500.0,9.82e-05,2]
[347516661,1735897880531,-500.0,9.82e-05,2]
[347516662,1735897880541,-501.29008626,9.82e-05,2]
[347516663,1735897880550,-815.99,9.82e-05,2]
[347516664,1735897880559,-1502.02,9.82e-05,2]
[347516665,1735897880568,-500.0,9.82e-05,2]
[347516666,1735897880577,-500.0,9.82e-05,2]
[347516667,1735897880587,-1222.16,9.82e-05,2]
[347516668,1735897880596,-723.11,9.82e-05,2]
[347516669,1735897880605,-500.0,9.82e-05,2]
[347516670,1735897880615,-501.69411849,9.82e-05,2]
[347516671,1735897880624,-1428.34,9.82e-05,2]
[347516672,1735897880634,-500.0,9.82e-05,2]
[347516673,1735897880642,-1427.34,9.82e-05,2]
[347516674,1735897880651,-4641.84,9.82e-05,2]
[347516675,1735897880660,-548.38,9.82e-05,2]
[347516676,1735897880669,-1206.62,9.82e-05,2]
[347516677,1735897880679,-1162.21,9.82e-05,2]
[347516678,1735897880687,-6158.26,9.82e-05,2]
[347516679,1735897880697,-501.66902297,9.82e-05,2]
[347516680,1735897880706,-500.0,9.82e-05,2]
[347516681,1735897880716,-225.13587772,9.82e-05,2]
[347516682,1735897880725,-1275.88,9.82e-05,2]
[347516683,1735897880734,-500.0,9.82e-05,2]
[347516684,1735897880744,-500.0,9.82e-05,2]
[347516685,1735897880753,-1324.87,9.82e-05,2]
[347516686,1735897880764,-500.0,9.82e-05,2]
[347516687,1735897880773,-1135.37,9.82e-05,2]
[347516688,1735897880782,-500.0,9.82e-05,2]
[347516689,1735897880791,-918.35,9.82e-05,2]
[347516690,1735897880801,-6841.13,9.82e-05,2]
[347516691,1735897880810,-500.0,9.82e-05,2]
[347516692,1735897880820,-1935.03,9.82e-05,2]
[347516693,1735897880830,-823.6,9.82e-05,2]
[347516694,1735897880838,-1694.23,9.82e-05,2]
[347516695,1735897880848,-1613.06,9.82e-05,2]
[347516696,1735897880857,-500.0,9.82e-05,2]
[347516697,1735897880866,-5296.48,9.82e-05,2]
[347516698,1735897880876,-1939.7,9.82e-05,2]
[347516699,1735897880886,-500.0,9.82e-05,2]
[347516700,1735897880895,-500.0,9.82e-05,2]
[347516701,1735897880904,-1162.3,9.82e-05,2]
[347516702,1735897880914,-2021.28,9.82e-05,2]
[347516703,1735897880923,-500.0,9.82e-05,2]
[347516704,1735897880933,-3076.62,9.82e-05,2]
[347516705,1735897880942,-500.0,9.821e-05,2]
[347516706,1735897880952,-2017.83,9.821e-05,2]
[347516707,1735897880961,-500.0,9.821e-05,2]
[347516708,1735897880971,-501.77884536,9.821e-05,2]
[347516709,1735897880980,-685.46,9.821e-05,2]
[347516710,1735897880990,-421.17167474,9.824e-05,2]
[347516711,1735897880999,-153.0,9.832e-05,2]
[347516712,1735897881009,-153.0,9.832e-05,2]
[347516713,1735897881019,-153.0,9.832e-05,2]
[347516714,1735897881030,-153.0,9.832e-05,2]
[347516715,1735897881040,-153.0,9.832e-05,2]
[347516716,1735897881049,-160.13,9.863e-05,2]
[347516717,1735897881059,-1057.0,9.875e-05,2]
[347516718,1735897881068,-1600.0,9.9e-05,3]
[347516719,1735897881077,-171.352278,9.913e-05,2]
[347516720,1735897881086,-1778.86,9.923e-05,2]
[347516721,1735897881095,-233.11,9.923e-05,2]
[347516722,1735897881104,-500.0,9.924e-05,2]
[347516723,1735897881113,-3085.84,9.924e-05,2]
[347516724,1735897881122,-3489.47,9.924e-05,2]
[347516725,1735897881131,-500.0,9.924e-05,2]
[347516726,1735897881140,-1214.53,9.924e-05,2]
[347516727,1735897881149,-3216.75,9.924e-05,2]
[347516728,1735897881158,-2477.49,9.924e-05,2]
[347516729,1735897881167,-500.0,9.924e-05,2]
[347516730,1735897881183,-2993.69,9.924e-05,2]
[347516731,1735897881192,-1778.86,9.924e-05,2]
[347516732,1735897881201,-2524.86,9.924e-05,2]
[347516733,1735897881210,-17037.60656349,9.97e-05,2]
[347516734,1735897881925,-958.97710049,9.97e-05,2]
[347516735,1735897881938,-1448.28654424,9.97e-05,2]
[347516736,1735897881949,-13964.58547709,9.97e-05,2]
[347516737,1735897881968,-440.09283553,9.97e-05,2]
[347516738,1735897882005,-468.329985,8.994e-05,2]
[347516739,1735897882032,-351.91513711,8.994e-05,2]
[347516740,1735897882060,-743.77487789,8.994e-05,2]
[347516741,1735897882070,-757.11,9.272e-05,2]
[347516742,1735897882080,-1549.23424571,9.649e-05,2]
[347516743,1735897882090,-812.9808764,9.97e-05,2]
[347516744,1735897882102,-926.49376947,9.97e-05,2]
[347516745,1735897882112,-789.58208381,9.971e-05,2]
[347516746,1735897882123,-873.42459444,9.971e-05,2]
[347516747,1735897882135,-596.51555169,9.971e-05,2]
[347516748,1735897882148,-1256.66283908,9.971e-05,2]
[347516749,1735897882159,-745.07338735,9.971e-05,2]
[347516750,1735897882291,-1363.18288141,9.268e-05,2]
[347516751,1735897882303,-200.83711859,9.268e-05,2]
[347516752,1735897882313,-757.11,9.546e-05,2]
[347516753,1735897882322,-880.91660026,9.971e-05,2]
[347516754,1735897883000,-500.0,8.994e-05,2]
[347516755,1735897883012,-500.0,9.268e-05,2]
[347516756,1735897883021,-1103.0,9.511e-05,2]
[347516757,1735897883033,-1564.02,9.542e-05,2]
[347516758,1735897883043,-500.0,9.542e-05,2]
[347516759,1735897883053,-1564.02,9.816e-05,2]
[347516760,1735897883063,-757.11,9.82e-05,2]
[347516761,1735897883074,-226.80585995,9.971e-05,2]
[347516762,1735897883359,-4579.39883277,9.971e-05,2]
[347516763,1735897883369,-10564.93836448,9.972e-05,2]
[347516764,1735897883381,-320.000002,9.972e-05,2]
[347516765,1735897883393,-548.915419,9.972e-05,2]
[347516766,1735897883411,-7437.089528,9.972e-05,2]
[347516767,1735897883429,-948.18708705,9.972e-05,2]
[347516768,1735897883441,-5148.43251339,9.972e-05,2]
[347516769,1735897883450,-29323.36963315,9.972e-05,2]
[347516770,1735897883486,-500.0,9.816e-05,2]
[347516771,1735897883495,-5145.1241218,9.972e-05,2]
[347516772,1735897883504,-16704.11875942,9.972e-05,2]
[347516773,1735897883543,-153.0,9.832e-05,2]
[347516774,1735897883553,-447.68337925,9.972e-05,2]
[347516775,1735897883564,-11633.98090159,9.972e-05,2]
[347516776,1735897883575,-396.18532911,9.972e-05,2]
[347516777,1735897884482,-5286.52538558,9.972e-05,2]
[347516778,1735897884492,-6026.90117759,9.973e-05,2]
[347516779,1735897884502,-789.58208381,9.974e-05,2]
[347516780,1735897884514,-789.58208381,9.974e-05,2]
[347516781,1735897884523,-859.0624,9.974e-05,2]
[347516782,1735897884535,-1269.51946574,9.974e-05,2]
[347516783,1735897884547,-878.26987319,9.974e-05,2]
[347516784,1735897884624,-260.1122952,9.974e-05,2]
[347516785,1735897884635,-616.48289195,9.974e-05,2]
[347516786,1735897884647,-1613.94584762,9.974e-05,2]
[347516787,1735897884772,-500.0,8.996e-05,2]
[347516788,1735897884782,-532.96,9.974e-05,2]
[347516789,1735897884808,-5920.45331126,9.974e-05,2]
[347516790,1735897884819,-1568.78007911,9.975e-05,2]
[347516791,1735897884828,-10277.74820963,9.975e-05,2]
[347516792,1735897884839,-11819.49704039,9.975e-05,2]
[347516793,1735897884848,-219.43911563,9.975e-05,2]
[347516794,1735897884857,-219.43911563,9.976e-05,2]
[347516795,1735897884866,-1502.51642256,9.976e-05,2]
[347516796,1735897884876,-1452.95238458,9.976e-05,2]
[347516797,1735897884902,-500.0,9.27e-05,2]
[347516798,1735897884911,-10497.85370038,9.976e-05,2]
[347516799,1735897884921,-3598.11041066,9.976e-05,2]
[347516800,1735897884932,-981.28842211,9.976e-05,2]
[347516801,1735897884941,-11159.11157789,9.976e-05,2]
[347516802,1735897884952,-5700.0,9.976e-05,2]
[347516803,1735897884963,-355.64993399,9.976e-05,2]
[347516805,1735898047807,287.74,7.1e-05,2]
[347516806,1735898228553,300.0,0.0002,120]
[347516808,1735898377524,150.00677731,0.0002,120]
[347516809,1735898380278,402.8,0.0002,120]
[347516810,1735898416421,11423.16862753,1.52e-05,29]
[347516811,1735898552380,1110.010318,0.0002,120]
[347516812,1735899031785,-1500.0,7.752e-05,2]
[347516813,1735899031799,-159.63,7.786e-05,2]
[347516814,1735899031809,-250.0,7.8e-05,2]
[347516815,1735899031818,-300.0,7.841e-05,2]
[347516816,1735899031827,-5352.85,7.842e-05,2]
[347516817,1735899031904,-15533.47815022,7.842e-05,2]
[347516818,1735899032037,-3013.67184978,7.842e-05,2]
[347516819,1735899032048,-200.0,7.848e-05,2]
[347516820,1735899032059,-585.55,7.963e-05,2]
[347516821,1735899032068,-250.0,8.005e-05,2]
[347516822,1735899032077,-500.0,8.005e-05,2]
[347516823,1735899032087,-500.0,8.005e-05,2]
[347516824,1735899032096,-500.0,8.005e-05,2]
[347516825,1735899032105,-473.68691583,8.005e-05,2]
[347516826,1735899032114,-1131.76,8.219e-05,2]
[347516827,1735899032123,-250.0,8.219e-05,2]
[347516828,1735899032133,-1893.78,8.219e-05,2]
[347516830,1735899032142,-800.0,8.22e-05,2]
[347516832,1735899032151,-160.73,8.242e-05,2]
[347516834,1735899032160,-901.61,8.302e-05,2]
[347516836,1735899032169,-200.0,8.327e-05,2]
[347516838,1735899032179,-1000.0,8.401e-05,2]
[347516840,1735899032188,-1422.38,8.627e-05,2]
[347516842,1735899032198,-1585.0,8.64e-05,2]
[347516844,1735899032207,-185.71,8.655e-05,2]
[347516846,1735899032217,-300.0,8.8e-05,3]
[347516848,1735899032226,-150.0,8.827e-05,2]
[347516850,1735899032235,-150.0,8.827e-05,2]
[347516852,1735899032245,-150.0,8.827e-05,2]
[347516854,1735899032254,-150.0,8.827e-05,2]
[347516856,1735899032263,-3940.2325,8.895e-05,2]
[347516858,1735899032272,-700.0,8.9e-05,3]
[347516860,1735899032282,-1094.62,8.992e-05,2]
[347516862,1735899032291,-3645.99642209,8.992e-05,2]
[347516864,1735899032303,-1873.88357791,8.992e-05,2]
[347516865,1735899032312,-8601.42,8.992e-05,2]
[347516867,1735899032321,-4538.46,8.992e-05,2]
[347516869,1735899032330,-5336.48,8.992e-05,2]
[347516871,1735899032339,-1921.95,8.992e-05,2]
[347516873,1735899032349,-8397.78,8.992e-05,2]
[347516874,1735899032358,-500.0,8.992e-05,2]
[347516876,1735899032367,-935.4,8.992e-05,2]
[347516878,1735899032377,-587.29,8.992e-05,2]